[Event "25th Abu Dhabi Master 2018"]
[Site "Abu Dhabi"]
[Date "2018.08.07"]
[Round "1"]
[White "Song, Yuxin"]
[Black "Anand, Nadar"]
[Result "1/2-1/2"]
[ECO "C95"]
[WhiteElo "2126"]
[BlackElo "2377"]
[Annotator "NA"]
[PlyCount "162"]
[EventDate "2018.08.05"]
[EventType "swiss"]
[EventCountry "UAE"]
[SourceTitle "playchess.com"]
[Source "ChessBase"]
[SourceQuality "1"]
[TimeControl "5400+30"]

1. e4 e5 2. Nf3 Nc6 3. Bb5 a6 4. Ba4 Nf6 5. O-O Be7 6. Re1 b5 7. Bb3 O-O 8. h3 d6 9. c3 Nb8 10. d4 Nbd7 11. Nbd2 Bb7 12. Bc2 Re8 13. Nf1 Bf8 14. Ng3 g6 15. Bg5 h6 16. Bd2 exd4 17. cxd4 c5 18. b3 cxd4 19. Nxd4 Nc5 20. Qb1 Bg7 21. Bc3 d5 22. Rd1 Qc7 23. Qb2 Nfxe4 24. Nxe4 dxe4 25. Nxb5 Bxc3 26. Nxc3 Rad8 27. Rxd8 Qxd8 28. Nd1 e3 29. fxe3 Qd2 30. e4 Bxe4 31. Bxe4 Qe1+ 32. Kh2 Nxe4 33. Rc1 Qg3+ 34. Kg1 Qe1+ 35. Kh2 Rd8 36. Qe5 Qd2 37. Nc3 Nxc3 38. Rxc3 Qxa2 39. Qf6 Rb8 40. Rf3 Rf8 41. Rg3 Qc2 42. Qxa6 Qc7 43. Qc4 Qe5 44. Qc3 Qb8 45. Kh1 Rc8 46. Qe3 h5 47. Rf3 Rc2 48. Qf4 Qb7 49. Qd4 Qc7 50. Rd3 Kh7 51. Rd2 Rc5 52. Rd1 Rf5 53. Qc4 Qb7 54. Rd2 Qe7 55. Qe2 Re5 56. Qf2 Re1+ 57. Kh2 Qe5+ 58. g3 Qe6 59. b4 h4 60. gxh4 Qe5+ 61. Kg2 Qe4+ 62. Kg3 Re3+ 63. Kh2 Rf3 64. Qd4 Qe1 65. Rg2 Qe6 66. Qg4 Qd6+ 67. Kh1 Rf4 68. Qg3 Rf1+ 69. Kh2 Qd1 70. Rg1 Qd2+ 71. Rg2 Qd5 72. h5 Qxh5 73. Rf2 Rxf2+ 74. Qxf2 Qe5+ 75. Kg2 f5 76. Qd2 Qe4+ 77. Kg3 Qe5+ 78. Kf3 Kg7 79. Qf4 Qd5+ 80. Kf2 Kf6 81. h4 Qa2+ 1/2-1/2

[Event "25th Abu Dhabi Master 2018"]
[Site "Abu Dhabi"]
[Date "2018.08.07"]
[Round "1"]
[White "Ali, Nehad"]
[Black "Soumya, Swaminathan"]
[Result "0-1"]
[ECO "A36"]
[WhiteElo "2113"]
[BlackElo "2361"]
[Annotator "NA"]
[PlyCount "105"]
[EventDate "2018.08.05"]
[EventType "swiss"]
[EventCountry "UAE"]
[SourceTitle "playchess.com"]
[Source "ChessBase"]
[SourceQuality "1"]
[TimeControl "5400+30"]

1. c4 c5 2. Nc3 Nc6 3. g3 g6 4. Bg2 Bg7 5. e3 Nf6 6. Nge2 d6 7. O-O h5 8. d4 Bd7 9. h3 a6 10. f4 cxd4 11. exd4 Rb8 12. d5 Na5 13. Qd3 Bf5 14. Qd4 Kf8 15. b3 h4 16. Qf2 hxg3 17. Qxg3 Qc8 18. Be3 Bxh3 19. Bb6 Bxg2 20. Kxg2 Nc6 21. Rh1 Rxh1 22. Rxh1 Ra8 23. Qf3 Nb8 24. Ng3 Qg4 25. Na4 Nbd7 26. Re1 Re8 27. Bd4 b5 28. Nb6 Qxf3+ 29. Kxf3 Nxb6 30. Bxb6 bxc4 31. bxc4 Rc8 32. f5 Rxc4 33. fxg6 fxg6 34. Bd8 Nxd5 35. Ne4 Be5 36. Ng5 Ke8 37. Ba5 Rf4+ 38. Ke2 Ra4 39. Bd2 Rxa2 40. Ne4 Nc3+ 41. Kd3 Nxe4 42. Rxe4 a5 43. Bc1 a4 44. Rb4 Kf7 45. Rb7 Ra1 46. Kc2 a3 47. Ra7 a2 48. Bd2 Bf6 49. Kd3 Rd1 50. Rxa2 Bg5 51. Ke2 Rxd2+ 52. Rxd2 Bxd2 53. Kd3 0-1

[Event "25th Abu Dhabi Master 2018"]
[Site "Abu Dhabi"]
[Date "2018.08.07"]
[Round "1"]
[White "Mayank, Pal"]
[Black "Kulkarni, Chinmay"]
[Result "0-1"]
[ECO "A04"]
[WhiteElo "2100"]
[BlackElo "2355"]
[Annotator "NA"]
[PlyCount "90"]
[EventDate "2018.08.05"]
[EventType "swiss"]
[EventCountry "UAE"]
[SourceTitle "playchess.com"]
[Source "ChessBase"]
[SourceQuality "1"]
[TimeControl "5400+30"]

1. Nf3 {[%emt 0:00:00]} c5 {[%emt 0:00:00]} 2. c4 {[%emt 0:00:00]} Nf6 {[%emt 0:00:00]} 3. b3 {[%emt 0:00:00]} g6 {[%emt 0:00:09]} 4. Bb2 {[%emt 0:00:14]} Bg7 {[%emt 0:00:07]} 5. g3 {[%emt 0:00:43]} Nc6 {[%emt 0:00:12]} 6. Bg2 {[%emt 0:01:07]} d6 {[%emt 0:00:26]} 7. d4 {[%emt 0:02:23]} cxd4 {[%emt 0:01:12]} 8. Nxd4 {[%emt 0:00:21]} Bd7 {[%emt 0:00:25]} 9. O-O {[%emt 0:00:26]} O-O {[%emt 0:00:12]} 10. Nc3 {[%emt 0:02:21]} Qa5 {[%emt 0:02:58]} 11. Nd5 {[%emt 0:12:31]} Nxd5 {[%emt 0:02:37]} 12. Nxc6 {[%emt 0:01:02]} Bxc6 {[%emt 0:05:04]} 13. Bxg7 {[%emt 0:00:47]} Ne3 {[%emt 0:04:53]} 14. fxe3 {[%emt 0:00:32]} Kxg7 {[%emt 0:00:07]} 15. Bxc6 {[%emt 0:02:46]} bxc6 {[%emt 0:00:07]} 16. Qd4+ {[%emt 0:04:32]} Kg8 {[%emt 0:00:07]} 17. e4 {[%emt 0:13:13]} Rad8 {[%emt 0:04:26]} 18. Rf3 {[%emt 0:05:22]} d5 {[%emt 0:07:03]} 19. cxd5 {[%emt 0:10:59]} cxd5 {[%emt 0:00:31]} 20. e5 {[%emt 0:00:37]} e6 {[%emt 0:00:10]} 21. a4 {[%emt 0:02:55]} Rb8 {[%emt 0:03:20]} 22. Raf1 {[%emt 0:05:23]} Rb4 {[%emt 0:01:54]} 23. Qc3 {[%emt 0:02:12]} Qb6+ {[%emt 0:01:47]} 24. Kh1 {[%emt 0:00:45]} Qb8 {[%emt 0:02:34]} 25. Qe3 {[%emt 0:05:54]} Re4 {[%emt 0:02:03]} 26. Qf2 {[%emt 0:01:22]} Qc7 {[%emt 0:04:05]} 27. Rf6 {[%emt 0:00:24]} Qe7 {[%emt 0:03:13]} 28. e3 {[%emt 0:07:17]} Rxe5 {[%emt 0:00:54]} 29. Rf4 {[%emt 0:00:59]} Qb7 {[%emt 0:02:02]} 30. Kg1 {[%emt 0:00:26]} Rf5 {[%emt 0:03:07]} 31. Rxf5 {[%emt 0:00:05]} exf5 {[%emt 0:00:06]} 32. Qc2 {[%emt 0:01:19]} Re8 {[%emt 0:02:58]} 33. Qd3 {[%emt 0:00:30]} Qb6 {[%emt 0:00:37]} 34. Kf2 {[%emt 0:00:32]} Qc5 {[%emt 0:01:10]} 35. Rd1 {[%emt 0:00:40]} Re4 {[%emt 0:03:24]} 36. Rd2 {[%emt 0:00:32]} f4 {[%emt 0:01:29]} 37. gxf4 {[%emt 0:01:59]} Rxf4+ {[%emt 0:00:08]} 38. Ke2 {[%emt 0:00:06]} Re4 {[%emt 0:03:01]} 39. Kf3 {[%emt 0:01:24]} h5 {[%emt 0:06:18]} 40. Rc2 {[%emt 0:00:33]} Qe7 {[%emt 0:01:08]} 41. Qxd5 {[%emt 0:06:13]} Rxe3+ {[%emt 0:00:19]} 42. Kg2 {[%emt 0:00:44]} Qh4 {[%emt 0:04:06]} 43. Qc4 {[%emt 0:03:16]} Qh3+ {[%emt 0:00:42]} 44. Kg1 {[%emt 0:00:14]} Re1+ {[%emt 0:01:17]} 45. Kf2 {[%emt 0:00:04]} Qe3+ {[%emt 0:00:08]} 0-1

[Event "25th Abu Dhabi Master 2018"]
[Site "Abu Dhabi"]
[Date "2018.08.07"]
[Round "1"]
[White "Panda, Sambit"]
[Black "Omar, Noaman"]
[Result "0-1"]
[ECO "D00"]
[WhiteElo "2043"]
[BlackElo "2353"]
[Annotator "NA"]
[PlyCount "90"]
[EventDate "2018.08.05"]
[EventType "swiss"]
[EventCountry "UAE"]
[SourceTitle "playchess.com"]
[Source "ChessBase"]
[SourceQuality "1"]
[TimeControl "5400+30"]

1. d4 d5 2. Bf4 Nf6 3. e3 c5 4. Nf3 Nc6 5. Nbd2 Qb6 6. dxc5 Qxb2 7. Rb1 Qc3 8. Bb5 e6 9. O-O Be7 10. Nb3 O-O 11. Qd3 Qb4 12. Bxc6 bxc6 13. Ne5 Qa4 14. Qd4 Qa6 15. Qd3 Qa4 16. Qd4 Qa6 17. Qd3 Ne4 18. f3 Nxc5 19. Qxa6 Nxa6 20. Nxc6 Ba3 21. Nbd4 f6 22. Nb5 Bc5 23. Bd6 Bxe3+ 24. Kh1 Re8 25. Rfe1 Bb6 26. Ba3 Bd7 27. Nbd4 e5 28. Ne7+ Rxe7 29. Bxe7 Bxd4 30. Rb3 Rc8 31. Ra3 Bb5 32. Rb1 Be2 33. h4 Bb6 34. c3 Kf7 35. Re1 Bb5 36. Rb1 Bc4 37. Bb4 Nxb4 38. Rxb4 Ke6 39. Raa4 Kf5 40. g3 g5 41. hxg5 fxg5 42. Kg2 g4 43. fxg4+ Kxg4 44. Rb5 e4 45. Rb1 Rf8 0-1

[Event "25th Abu Dhabi Master 2018"]
[Site "Abu Dhabi"]
[Date "2018.08.07"]
[Round "1"]
[White "Nitin, Shankar Madhu"]
[Black "Esenbek Uulu, Ilimbek"]
[Result "1-0"]
[ECO "A05"]
[WhiteElo "1982"]
[BlackElo "2159"]
[Annotator "NA"]
[PlyCount "143"]
[EventDate "2018.08.05"]
[EventType "swiss"]
[EventCountry "UAE"]
[SourceTitle "playchess.com"]
[Source "ChessBase"]
[SourceQuality "1"]
[TimeControl "5400+30"]

1. Nf3 {[%emt 0:00:20]} Nf6 {[%emt 0:01:08]} 2. g3 {[%emt 0:00:44]} b6 {[%emt 0:03:28]} 3. Bg2 {[%emt 0:00:20]} Bb7 {[%emt 0:00:07]} 4. O-O {[%emt 0:00:22]} c5 {[%emt 0:01:47]} 5. d3 {[%emt 0:02:34]} d6 {[%emt 0:01:56]} 6. e4 {[%emt 0:01:32]} Nbd7 {[%emt 0:00:06]} 7. Nc3 {[%emt 0:01:50]} g6 {[%emt 0:00:46]} 8. Nh4 {[%emt 0:00:48]} b5 {[%emt 0:06:15]} 9. Nxb5 {[%emt 0:01:58]} Qb6 {[%emt 0:00:11]} 10. Na3 {[%emt 0:01:15]} Bg7 {[%emt 0:04:38]} 11. Nc4 {[%emt 0:01:19]} Qa6 {[%emt 0:00:19]} 12. Qe2 {[%emt 0:06:30]} O-O {[%emt 0:00:53]} 13. Bd2 {[%emt 0:01:58]} Rab8 {[%emt 0:11:08]} 14. Bc3 {[%emt 0:04:10]} Rfe8 {[%emt 0:01:00]} 15. Rfe1 {[%emt 0:08:07]} e5 {[%emt 0:09:29]} 16. Ne3 {[%emt 0:09:39]} Nb6 {[%emt 0:00:42]} 17. b3 {[%emt 0:14:38]} d5 {[%emt 0:01:29]} 18. Ng4 {[%emt 0:02:45]} h5 {[%emt 0:17:32]} 19. Nxf6+ {[%emt 0:01:58]} Bxf6 {[%emt 0:00:19]} 20. Nf3 {[%emt 0:01:39]} Bg7 {[%emt 0:09:20]} 21. a4 {[%emt 0:02:37]} c4 {[%emt 0:03:14]} 22. dxc4 {[%emt 0:03:38]} dxc4 {[%emt 0:02:00]} 23. Bf1 {[%emt 0:01:11]} Rbc8 {[%emt 0:04:16]} 24. Qe3 {[%emt 0:02:19]} f5 {[%emt 0:06:21]} 25. a5 {[%emt 0:00:52]} Nd7 {[%emt 0:00:06]} 26. Nd2 {[%emt 0:03:38]} Nf6 {[%emt 0:10:39]} 27. Bxc4+ {[%emt 0:07:07]} Rxc4 {[%emt 0:00:08]} 28. bxc4 {[%emt 0:00:07]} fxe4 {[%emt 0:00:15]} 29. Rab1 {[%emt 0:00:54]} Ng4 {[%emt 0:01:15]} 30. Qe2 {[%emt 0:01:55]} e3 {[%emt 0:00:13]} 31. fxe3 {[%emt 0:00:09]} Bh6 {[%emt 0:00:05]} 32. Nf1 {[%emt 0:01:18]} Rf8 {[%emt 0:01:11]} 33. e4 {[%emt 0:03:47]} Ba8 {[%emt 0:02:42]} 34. Bd2 {[%emt 0:01:02]} Bxd2 {[%emt 0:01:10]} 35. Nxd2 {[%emt 0:00:23]} Qxa5 {[%emt 0:00:04]} 36. Rf1 {[%emt 0:02:20]} Qc5+ {[%emt 0:00:13]} 37. Kh1 {[%emt 0:00:07]} Rd8 {[%emt 0:00:50]} 38. Rbe1 {[%emt 0:00:21]} a5 {[%emt 0:01:08]} 39. h3 {[%emt 0:00:17]} Ne3 {[%emt 0:00:12]} 40. Qxe3 {[%emt 0:00:36]} Qxe3 {[%emt 0:00:04]} 41. Rxe3 {[%emt 0:00:08]} Rxd2 {[%emt 0:00:01]} 42. Rb1 {[%emt 0:02:12]} Kg7 {[%emt 0:00:15]} 43. Rb5 {[%emt 0:02:12]} a4 {[%emt 0:00:45]} 44. Rxe5 {[%emt 0:00:10]} Rxc2 {[%emt 0:00:11]} 45. Ra5 {[%emt 0:00:26]} Bc6 {[%emt 0:00:07]} 46. Rc5 {[%emt 0:00:38]} a3 {[%emt 0:02:19]} 47. Rxc6 {[%emt 0:00:21]} Rc1+ {[%emt 0:00:05]} 48. Kg2 {[%emt 0:00:15]} a2 {[%emt 0:00:02]} 49. Ra3 {[%emt 0:01:52]} a1=Q {[%emt 0:00:28]} 50. Rxa1 {[%emt 0:00:05]} Rxa1 {[%emt 0:00:05]} 51. h4 {[%emt 0:00:24]} Ra3 {[%emt 0:00:37]} 52. Kf2 {[%emt 0:00:09]} Kf7 {[%emt 0:00:06]} 53. e5 {[%emt 0:00:21]} Rc3 {[%emt 0:00:11]} 54. c5 {[%emt 0:00:28]} Rc2+ {[%emt 0:00:26]} 55. Kf3 {[%emt 0:01:48]} Rc3+ {[%emt 0:00:03]} 56. Kf4 {[%emt 0:00:51]} Rc4+ {[%emt 0:00:03]} 57. Kg5 {[%emt 0:00:40]} Rg4+ {[%emt 0:00:07]} 58. Kh6 {[%emt 0:00:04]} Rxg3 {[%emt 0:00:04]} 59. Rf6+ {[%emt 0:00:03]} Ke7 {[%emt 0:00:10]} 60. Rxg6 {[%emt 0:00:06]} Rc3 {[%emt 0:00:24]} 61. c6 {[%emt 0:00:14]} Rc5 {[%emt 0:00:34]} 62. c7 {[%emt 0:01:17]} Kd7 {[%emt 0:00:11]} 63. Rg7+ {[%emt 0:00:05]} Kc8 {[%emt 0:00:05]} 64. Re7 {[%emt 0:00:15]} Rc2 {[%emt 0:00:20]} 65. Kxh5 {[%emt 0:00:11]} Rg2 {[%emt 0:00:10]} 66. Kh6 {[%emt 0:00:12]} Rg4 {[%emt 0:00:18]} 67. h5 {[%emt 0:00:10]} Rg3 {[%emt 0:00:06]} 68. Kh7 {[%emt 0:00:15]} Rg5 {[%emt 0:00:13]} 69. h6 {[%emt 0:00:05]} Rg3 {[%emt 0:00:11]} 70. e6 {[%emt 0:00:12]} Rg5 {[%emt 0:00:41]} 71. Rg7 {[%emt 0:00:08]} Re5 {[%emt 0:00:08]} 72. e7 {[%emt 0:00:21]} 1-0

[Event "25th Abu Dhabi Master 2018"]
[Site "Abu Dhabi"]
[Date "2018.08.07"]
[Round "1"]
[White "Al Zaabi, Sultan"]
[Black "Saravana, Krishnan P"]
[Result "0-1"]
[ECO "A05"]
[WhiteElo "1945"]
[BlackElo "2348"]
[Annotator "NA"]
[PlyCount "60"]
[EventDate "2018.08.05"]
[EventType "swiss"]
[EventCountry "UAE"]
[SourceTitle "playchess.com"]
[Source "ChessBase"]
[SourceQuality "1"]
[TimeControl "5400+30"]

1. Nf3 {[%emt 0:00:00]} Nf6 {[%emt 0:00:00]} 2. d4 {[%emt 0:00:00]} d5 {[%emt 0:00:04]} 3. g3 {[%emt 0:00:00]} c6 {[%emt 0:00:39]} 4. Bg2 {[%emt 0:00:02]} Bf5 {[%emt 0:01:16]} 5. O-O {[%emt 0:00:11]} h6 {[%emt 0:00:18]} 6. c4 {[%emt 0:00:07]} e6 {[%emt 0:01:09]} 7. Qb3 {[%emt 0:00:29]} Qb6 {[%emt 0:01:44]} 8. c5 {[%emt 0:00:06]} Qxb3 {[%emt 0:06:29]} 9. axb3 {[%emt 0:00:01]} Na6 {[%emt 0:00:41]} 10. Bf4 {[%emt 0:07:07]} Nd7 {[%emt 0:03:18]} 11. Nc3 {[%emt 0:02:11]} g5 {[%emt 0:02:34]} 12. Be3 {[%emt 0:00:21]} Be7 {[%emt 0:08:55]} 13. Ra4 {[%emt 0:09:56]} Nc7 {[%emt 0:05:19]} 14. b4 {[%emt 0:06:55]} O-O {[%emt 0:02:04]} 15. Rfa1 {[%emt 0:04:01]} a6 {[%emt 0:00:06]} 16. h4 {[%emt 0:14:37]} f6 {[%emt 0:02:36]} 17. Nd2 {[%emt 0:06:02]} Kh7 {[%emt 0:05:50]} 18. hxg5 {[%emt 0:01:18]} hxg5 {[%emt 0:02:56]} 19. f4 {[%emt 0:04:09]} gxf4 {[%emt 0:09:46]} 20. gxf4 {[%emt 0:00:11]} Bc2 {[%emt 0:00:53]} 21. R4a3 {[%emt 0:01:02]} f5 {[%emt 0:00:21]} 22. Nf3 {[%emt 0:00:56]} Nf6 {[%emt 0:02:04]} 23. Ne5 {[%emt 0:13:30]} Rg8 {[%emt 0:04:32]} 24. Bf2 {[%emt 0:05:49]} Nh5 {[%emt 0:06:15]} 25. e3 {[%emt 0:02:14]} Nb5 {[%emt 0:06:55]} 26. Nxb5 {[%emt 0:05:36]} Be4 {[%emt 0:00:46]} 27. Nc7 {[%emt 0:00:35]} Rxg2+ {[%emt 0:00:07]} 28. Kf1 {[%emt 0:00:04]} Rag8 {[%emt 0:00:24]} 29. Nxe6 {[%emt 0:00:57]} Ng3+ {[%emt 0:01:20]} 30. Ke1 {[%emt 0:00:00]} Nh1 {[%emt 0:00:00]} 0-1